[Event "Charlotte Fall GM-A 2023"]
[Site "Charlotte"]
[Date "2023.11.19"]
[Round "4.1"]
[White "Sandoval Mercado, Carlos"]
[Black "Chen, Ryo"]
[Result "0-1"]
[ECO "E62"]
[WhiteElo "2397"]
[BlackElo "2367"]
[Annotator "RC"]
[PlyCount "90"]
[EventDate "2023.11.17"]
[EventType "tourn"]
[EventCountry "USA"]
[SourceTitle "playchess.com"]
[Source "ChessBase"]
[SourceQuality "1"]
[TimeControl "5400+30"]

1. d4 {[%emt 0:00:26]} Nf6 {[%emt 0:00:13]} 2. c4 {[%emt 0:00:09]} g6 {[%emt 0:00:01]} 3. Nf3 {[%emt 0:00:42]} Bg7 {[%emt 0:00:13]} 4. g3 {[%emt 0:00:05]} O-O {[%emt 0:00:07]} 5. Bg2 {[%emt 0:00:04]} d6 {[%emt 0:00:06]} 6. O-O {[%emt 0:00:43]} Nc6 {[%emt 0:00:15]} 7. Nc3 {[%emt 0:01:11]} e5 {[%emt 0:00:13]} 8. dxe5 {[%emt 0:02:26]} dxe5 {[%emt 0:04:00]} 9. Bg5 {[%emt 0:00:58]} h6 {[%emt 0:00:42]} 10. Qxd8 {[%emt 0:00:40]} Rxd8 {[%emt 0:00:13]} 11. Bxf6 {[%emt 0:01:14]} Bxf6 {[%emt 0:00:08]} 12. Nd5 {[%emt 0:00:08]} Kg7 {[%emt 0:00:17]} 13. Nxc7 {[%emt 0:01:57]} Rb8 {[%emt 0:00:04]} 14. e4 {[%emt 0:00:28]} Be7 {[%emt 0:00:46]} 15. Rfd1 {[%emt 0:05:22]} Be6 {[%emt 0:01:34]} 16. Nd5 {[%emt 0:04:30]} Bc5 {[%emt 0:00:37]} 17. h3 {[%emt 0:03:14]} a5 {[%emt 0:07:00]} 18. Rab1 {[%emt 1:15:13]} b6 {[%emt 0:22:58]} 19. Bf1 {[%emt 0:00:00]} f6 {[%emt 0:12:14]} 20. Kg2 {[%emt 0:00:00]} Rd7 {[%emt 0:10:02]} 21. Rbc1 {[%emt 0:00:00]} Rf7 {[%emt 0:08:54]} 22. Bd3 {[%emt 0:00:00]} Rbf8 {[%emt 0:04:58]} 23. Ne1 {[%emt 0:00:00]} f5 {[%emt 0:07:10]} 24. f4 {[%emt 0:00:00]} Re8 {[%emt 0:03:11]} 25. exf5 {[%emt 0:00:00]} gxf5 {[%emt 0:01:20]} 26. Be2 {[%emt 0:00:00]} Rd7 {[%emt 0:03:34]} 27. Nd3 {[%emt 0:00:00]} e4 {[%emt 0:02:28]} 28. Bh5 {[%emt 0:00:00]} Red8 {[%emt 0:01:17]} 29. Nxc5 {[%emt 0:00:00]} bxc5 {[%emt 0:00:05]} 30. Kf2 {[%emt 0:00:00]} Rb7 {[%emt 0:08:07]} 31. b3 {[%emt 0:01:12]} a4 {[%emt 0:00:37]} 32. Nc3 {[%emt 0:01:38]} axb3 {[%emt 0:00:28]} 33. axb3 {[%emt 0:00:02]} Rxb3 {[%emt 0:00:31]} 34. Rxd8 {[%emt 0:00:18]} Nxd8 {[%emt 0:00:03]} 35. g4 {[%emt 0:03:12]} Nc6 {[%emt 0:01:09]} 36. gxf5 {[%emt 0:00:02]} Bxf5 {[%emt 0:00:25]} 37. Bg4 {[%emt 0:00:02]} Kg6 {[%emt 0:01:09]} 38. Nd5 {[%emt 0:00:21]} h5 {[%emt 0:01:20]} 39. Bxf5+ {[%emt 0:00:22]} Kxf5 {[%emt 0:01:31]} 40. Rg1 {[%emt 0:00:10]} Rf3+ {[%emt 0:00:00]} 41. Ke1 {[%emt 0:00:26]} e3 {[%emt 0:00:00]} 42. Rg5+ {[%emt 0:01:20]} Ke4 {[%emt 0:00:04]} 43. Nf6+ {[%emt 0:02:49]} Kd3 {[%emt 0:01:56]} 44. Nd7 {[%emt 0:00:19]} e2 {[%emt 0:00:00]} 45. Rg1 {[%emt 0:00:01]} Nd4 {[%emt 0:01:00]} 0-1

[Event "Charlotte Fall GM-A 2023"]
[Site "Charlotte"]
[Date "2023.11.18"]
[Round "4.3"]
[White "Bellahcene, Bilel"]
[Black "Woodward, Andy"]
[Result "1/2-1/2"]
[ECO "B94"]
[WhiteElo "2502"]
[BlackElo "2473"]
[Annotator "RC"]
[PlyCount "44"]
[EventDate "2023.11.17"]
[EventType "tourn"]
[EventCountry "USA"]
[SourceTitle "playchess.com"]
[Source "ChessBase"]
[SourceQuality "1"]
[TimeControl "5400+30"]

1. e4 {[%emt 0:00:01]} c5 {[%emt 0:00:25]} 2. Nf3 {[%emt 0:00:03]} d6 {[%emt 0:00:08]} 3. d4 {[%emt 0:00:02]} cxd4 {[%emt 0:00:08]} 4. Nxd4 {[%emt 0:00:02]} Nf6 {[%emt 0:00:13]} 5. Nc3 {[%emt 0:00:02]} a6 {[%emt 0:00:09]} 6. Bg5 {[%emt 0:00:04]} Nbd7 {[%emt 1:32:27]} 7. Bc4 {[%emt 0:00:04]} Qb6 {[%emt 0:00:00]} 8. O-O {[%emt 0:00:07]} Qxb2 {[%emt 0:00:00]} 9. Nd5 {[%emt 0:00:03]} Nxd5 {[%emt 0:00:00]} 10. Rb1 {[%emt 0:00:05]} Qc3 {[%emt 0:00:00]} 11. Bxd5 {[%emt 0:00:02]} e6 {[%emt 0:00:00]} 12. Bxb7 {[%emt 0:00:05]} Bxb7 {[%emt 0:00:00]} 13. Rxb7 {[%emt 0:00:03]} Nc5 {[%emt 0:03:30]} 14. Rc7 {[%emt 0:00:19]} Qa5 {[%emt 0:00:00]} 15. Rc6 {[%emt 0:00:02]} Nxe4 {[%emt 0:00:00]} 16. Qb1 {[%emt 0:00:02]} Qxg5 {[%emt 0:00:00]} 17. Qb7 {[%emt 0:00:12]} Rd8 {[%emt 0:02:00]} 18. Rxa6 {[%emt 0:06:14]} Nc5 {[%emt 0:00:00]} 19. Qb5+ {[%emt 0:00:07]} Rd7 {[%emt 0:00:00]} 20. Ra8+ {[%emt 0:00:07]} Ke7 {[%emt 0:00:00]} 21. Nc6+ {[%emt 0:00:02]} Kf6 {[%emt 0:02:00]} 22. Ra3 {[%emt 0:00:05]} Qd5 {[%emt 0:00:00]} 1/2-1/2

[Event "Charlotte Fall GM-A 2023"]
[Site "Charlotte"]
[Date "2023.11.19"]
[Round "4.4"]
[White "Mardov, Dimitar"]
[Black "Siddharth, Jagadeesh"]
[Result "1-0"]
[ECO "E70"]
[WhiteElo "2455"]
[BlackElo "2438"]
[Annotator "RC"]
[PlyCount "127"]
[EventDate "2023.11.17"]
[EventType "tourn"]
[EventCountry "USA"]
[SourceTitle "playchess.com"]
[Source "ChessBase"]
[SourceQuality "1"]
[TimeControl "5400+30"]

1. d4 {[%emt 0:00:02]} Nf6 {[%emt 0:08:41]} 2. c4 {[%emt 0:00:18]} g6 {[%emt 0:00:06]} 3. Nc3 {[%emt 0:00:34]} Bg7 {[%emt 0:00:06]} 4. e4 {[%emt 0:00:33]} d6 {[%emt 0:00:09]} 5. Bd3 {[%emt 0:00:07]} O-O {[%emt 0:00:17]} 6. Nge2 {[%emt 0:00:12]} Nc6 {[%emt 0:00:07]} 7. O-O {[%emt 0:01:03]} Nd7 {[%emt 0:00:13]} 8. Bc2 {[%emt 0:00:47]} e5 {[%emt 0:00:56]} 9. d5 {[%emt 0:00:22]} Nd4 {[%emt 0:00:28]} 10. Nxd4 {[%emt 0:00:46]} exd4 {[%emt 0:00:07]} 11. Ne2 {[%emt 0:00:03]} Ne5 {[%emt 0:00:09]} 12. Nxd4 {[%emt 0:00:33]} Nxc4 {[%emt 0:00:08]} 13. Rb1 {[%emt 0:00:44]} Re8 {[%emt 0:00:12]} 14. h3 {[%emt 0:01:17]} c5 {[%emt 0:00:32]} 15. dxc6 {[%emt 0:00:09]} bxc6 {[%emt 0:00:05]} 16. Nxc6 {[%emt 0:00:26]} Qb6 {[%emt 0:00:09]} 17. Re1 {[%emt 0:00:34]} Ba6 {[%emt 0:10:22]} 18. b3 {[%emt 0:00:53]} Qxc6 {[%emt 0:03:24]} 19. bxc4 {[%emt 0:00:19]} Qxc4 {[%emt 0:03:16]} 20. Bb3 {[%emt 0:06:50]} Qd3 {[%emt 0:11:52]} 21. Ba3 {[%emt 0:08:00]} Rad8 {[%emt 0:09:20]} 22. Re3 {[%emt 0:15:09]} Qxd1+ {[%emt 0:05:03]} 23. Rxd1 {[%emt 0:00:08]} Bb7 {[%emt 0:00:10]} 24. Rf3 {[%emt 0:09:01]} Re7 {[%emt 0:02:20]} 25. Rxd6 {[%emt 0:03:10]} Rxd6 {[%emt 0:00:08]} 26. Bxd6 {[%emt 0:00:06]} Rd7 {[%emt 0:00:05]} 27. Ba3 {[%emt 0:10:31]} Bd4 {[%emt 0:00:18]} 28. Ba4 {[%emt 0:02:56]} Rd8 {[%emt 0:00:48]} 29. Bc2 {[%emt 0:08:08]} Bb6 {[%emt 0:04:24]} 30. Rc3 {[%emt 0:08:34]} Re8 {[%emt 0:14:40]} 31. Rc4 {[%emt 0:04:42]} Ba6 {[%emt 0:01:18]} 32. Rc3 {[%emt 0:00:53]} Bb7 {[%emt 0:00:42]} 33. Bb2 {[%emt 0:01:27]} Bd4 {[%emt 0:01:59]} 34. Rc7 {[%emt 0:01:05]} Bxb2 {[%emt 0:00:04]} 35. Rxb7 {[%emt 0:00:04]} Bd4 {[%emt 0:00:06]} 36. Bb3 {[%emt 0:06:17]} Rxe4 {[%emt 0:00:15]} 37. Rxf7 {[%emt 0:00:16]} Kh8 {[%emt 0:00:12]} 38. g3 {[%emt 0:00:40]} Bc5 {[%emt 0:00:16]} 39. Kg2 {[%emt 0:01:12]} Re7 {[%emt 0:00:09]} 40. Rf4 {[%emt 0:03:05]} Kg7 {[%emt 0:00:11]} 41. h4 {[%emt 0:00:06]} Bb6 {[%emt 0:03:48]} 42. g4 {[%emt 0:01:50]} h6 {[%emt 0:01:33]} 43. g5 {[%emt 0:01:01]} hxg5 {[%emt 0:00:51]} 44. hxg5 {[%emt 0:00:06]} Rd7 {[%emt 0:01:30]} 45. Re4 {[%emt 0:01:07]} Bc5 {[%emt 0:05:28]} 46. Re5 {[%emt 0:02:13]} Bb6 {[%emt 0:01:43]} 47. f4 {[%emt 0:00:41]} Rd2+ {[%emt 0:02:12]} 48. Kf3 {[%emt 0:00:20]} Rd3+ {[%emt 0:00:01]} 49. Ke2 {[%emt 0:00:39]} Rd7 {[%emt 0:00:02]} 50. Re8 {[%emt 0:00:58]} Bc5 {[%emt 0:01:41]} 51. Rc8 {[%emt 0:01:14]} Bb6 {[%emt 0:01:08]} 52. Rc6 {[%emt 0:00:50]} Re7+ {[%emt 0:03:18]} 53. Kf3 {[%emt 0:00:28]} Re3+ {[%emt 0:00:02]} 54. Kg4 {[%emt 0:00:38]} Re1 {[%emt 0:00:43]} 55. Bc2 {[%emt 0:00:32]} Rg1+ {[%emt 0:01:38]} 56. Kf3 {[%emt 0:00:45]} Rf1+ {[%emt 0:00:01]} 57. Kg3 {[%emt 0:00:30]} Rg1+ {[%emt 0:00:01]} 58. Kh3 {[%emt 0:01:14]} Rh1+ {[%emt 0:00:03]} 59. Kg2 {[%emt 0:00:24]} Rg1+ {[%emt 0:00:04]} 60. Kf3 {[%emt 0:01:54]} Rf1+ {[%emt 0:00:01]} 61. Kg3 {[%emt 0:00:48]} Rg1+ {[%emt 0:00:51]} 62. Kh2 {[%emt 0:00:10]} Rg4 {[%emt 0:00:01]} 63. Rxg6+ {[%emt 0:00:14]} Kh8 {[%emt 0:00:00]} 64. f5 {[%emt 0:00:53]} 1-0

[Event "Charlotte Fall GM-A 2023"]
[Site "Charlotte"]
[Date "2023.11.19"]
[Round "5.1"]
[White "Cruz, Cristhian"]
[Black "Sandoval Mercado, Carlos"]
[Result "1/2-1/2"]
[ECO "A61"]
[WhiteElo "2498"]
[BlackElo "2397"]
[Annotator "RC"]
[PlyCount "55"]
[EventDate "2023.11.17"]
[EventType "tourn"]
[EventCountry "USA"]
[SourceTitle "playchess.com"]
[Source "ChessBase"]
[SourceQuality "1"]
[TimeControl "5400+30"]

1. d4 {[%emt 0:07:14]} Nf6 {[%emt 0:00:05]} 2. c4 {[%emt 0:00:22]} c5 {[%emt 0:00:09]} 3. d5 {[%emt 0:00:22]} e6 {[%emt 0:00:05]} 4. Nc3 {[%emt 0:00:14]} exd5 {[%emt 0:00:05]} 5. cxd5 {[%emt 0:00:05]} d6 {[%emt 0:00:04]} 6. Nf3 {[%emt 0:01:03]} g6 {[%emt 0:00:05]} 7. Bf4 {[%emt 0:03:31]} Bg7 {[%emt 0:02:11]} 8. e3 {[%emt 0:00:18]} O-O {[%emt 0:00:07]} 9. Be2 {[%emt 0:00:32]} Nh5 {[%emt 0:03:13]} 10. Bg5 {[%emt 0:00:59]} Qb6 {[%emt 0:00:06]} 11. Qc1 {[%emt 0:07:53]} h6 {[%emt 0:01:37]} 12. Bh4 {[%emt 0:01:33]} g5 {[%emt 0:03:03]} 13. Nd2 {[%emt 0:02:45]} gxh4 {[%emt 0:03:46]} 14. Bxh5 {[%emt 0:00:14]} Qd8 {[%emt 0:01:15]} 15. Nc4 {[%emt 0:06:07]} Nd7 {[%emt 0:09:20]} 16. Bg4 {[%emt 0:12:40]} Qg5 {[%emt 0:09:29]} 17. Bh3 {[%emt 0:06:05]} b5 {[%emt 0:12:32]} 18. Nxb5 {[%emt 0:06:23]} Rb8 {[%emt 0:05:33]} 19. Nbxd6 {[%emt 0:06:02]} Ne5 {[%emt 0:05:59]} 20. Nxe5 {[%emt 0:13:54]} Bxh3 {[%emt 0:00:32]} 21. gxh3 {[%emt 0:00:03]} Qxe5 {[%emt 0:04:02]} 22. Nc4 {[%emt 0:00:03]} Qxd5 {[%emt 0:00:51]} 23. Rg1 {[%emt 0:00:29]} Kh8 {[%emt 0:01:01]} 24. Qc2 {[%emt 0:02:47]} Qf3 {[%emt 0:07:03]} 25. Qe2 {[%emt 0:05:18]} Qxh3 {[%emt 0:06:08]} 26. Qg4 {[%emt 0:02:56]} Qxg4 {[%emt 0:00:04]} 27. Rxg4 {[%emt 0:00:04]} Bxb2 {[%emt 0:00:14]} 28. Nxb2 {[%emt 0:06:41]} 1/2-1/2

[Event "Charlotte Fall GM-A 2023"]
[Site "Charlotte"]
[Date "2023.11.19"]
[Round "5.2"]
[White "Siddharth, Jagadeesh"]
[Black "Corrales Jimenez, Fidel"]
[Result "1/2-1/2"]
[ECO "D00"]
[WhiteElo "2438"]
[BlackElo "2525"]
[Annotator "RC"]
[PlyCount "141"]
[EventDate "2023.11.17"]
[EventType "tourn"]
[EventCountry "USA"]
[SourceTitle "playchess.com"]
[Source "ChessBase"]
[SourceQuality "1"]
[TimeControl "5400+30"]

1. d4 {[%emt 1:31:00]} Nf6 {[%emt 0:10:04]} 2. Nc3 {[%emt 0:00:00]} d5 {[%emt 0:00:09]} 3. Bf4 {[%emt 0:00:00]} c6 {[%emt 0:02:17]} 4. e3 {[%emt 0:00:00]} g6 {[%emt 0:00:12]} 5. h3 {[%emt 0:00:00]} Bg7 {[%emt 0:00:09]} 6. Nf3 {[%emt 0:00:00]} Nbd7 {[%emt 0:01:25]} 7. Be2 {[%emt 0:00:00]} a5 {[%emt 0:01:30]} 8. a4 {[%emt 0:00:00]} O-O {[%emt 0:00:18]} 9. O-O {[%emt 0:00:00]} Nb6 {[%emt 0:03:32]} 10. Bd3 {[%emt 0:00:00]} Bf5 {[%emt 0:00:46]} 11. Re1 {[%emt 0:00:00]} Rc8 {[%emt 0:05:16]} 12. e4 {[%emt 0:00:00]} dxe4 {[%emt 0:00:07]} 13. Nxe4 {[%emt 0:00:00]} Bxe4 {[%emt 0:03:21]} 14. Bxe4 {[%emt 0:00:00]} Nxe4 {[%emt 0:00:05]} 15. Rxe4 {[%emt 0:00:00]} Nd5 {[%emt 0:00:04]} 16. Be5 {[%emt 0:00:00]} b5 {[%emt 0:02:27]} 17. c3 {[%emt 0:00:00]} b4 {[%emt 0:03:01]} 18. Bxg7 {[%emt 0:00:00]} Kxg7 {[%emt 0:00:04]} 19. c4 {[%emt 0:00:00]} Nf6 {[%emt 0:00:15]} 20. Re3 {[%emt 0:00:00]} e6 {[%emt 0:00:14]} 21. Qe2 {[%emt 0:00:00]} Qc7 {[%emt 0:01:55]} 22. Rd1 {[%emt 0:00:00]} c5 {[%emt 0:00:08]} 23. b3 {[%emt 0:00:00]} Rcd8 {[%emt 0:02:25]} 24. Red3 {[%emt 0:00:00]} cxd4 {[%emt 0:00:13]} 25. Nxd4 {[%emt 0:00:00]} Rde8 {[%emt 0:13:10]} 26. Nb5 {[%emt 0:00:00]} Qc5 {[%emt 0:00:05]} 27. Qf3 {[%emt 0:00:00]} Re7 {[%emt 0:01:08]} 28. Nd6 {[%emt 0:00:00]} Ne8 {[%emt 0:00:51]} 29. Qf4 {[%emt 0:00:00]} Nxd6 {[%emt 0:00:51]} 30. Qxd6 {[%emt 0:00:00]} Rc8 {[%emt 0:00:15]} 31. Qxc5 {[%emt 0:00:00]} Rxc5 {[%emt 0:00:04]} 32. Rd7 {[%emt 0:00:00]} Kf6 {[%emt 0:00:08]} 33. f3 {[%emt 0:00:00]} h5 {[%emt 0:00:48]} 34. h4 {[%emt 0:00:00]} g5 {[%emt 0:00:21]} 35. hxg5+ {[%emt 0:00:00]} Rxg5 {[%emt 0:00:02]} 36. Kf2 {[%emt 0:00:00]} Re8 {[%emt 0:00:05]} 37. Rd8 {[%emt 0:00:00]} Rxd8 {[%emt 0:02:11]} 38. Rxd8 {[%emt 0:00:00]} Ke5 {[%emt 0:01:24]} 39. g3 {[%emt 0:00:00]} Rg7 {[%emt 0:00:04]} 40. c5 {[%emt 0:00:00]} f6 {[%emt 0:00:06]} 41. Ke3 {[%emt 0:01:52]} Rxg3 {[%emt 0:02:17]} 42. c6 {[%emt 0:03:58]} Rg7 {[%emt 0:00:04]} 43. Rd7 {[%emt 0:02:43]} Rg1 {[%emt 0:00:10]} 44. Kd2 {[%emt 0:03:35]} Rg8 {[%emt 0:00:07]} 45. Ra7 {[%emt 0:00:06]} h4 {[%emt 0:19:25]} 46. Rxa5+ {[%emt 0:00:35]} Kf4 {[%emt 0:00:47]} 47. Rb5 {[%emt 0:02:35]} h3 {[%emt 0:05:01]} 48. Rxb4+ {[%emt 0:00:01]} Kxf3 {[%emt 0:00:03]} 49. Rh4 {[%emt 0:00:49]} Kg3 {[%emt 0:00:04]} 50. Rh6 {[%emt 0:00:18]} Rc8 {[%emt 0:12:46]} 51. Rg6+ {[%emt 0:00:24]} Kh4 {[%emt 0:00:04]} 52. Rxf6 {[%emt 0:00:43]} Rxc6 {[%emt 0:00:04]} 53. Rh6+ {[%emt 0:02:10]} Kg3 {[%emt 0:00:55]} 54. Rg6+ {[%emt 0:00:22]} Kf3 {[%emt 0:00:04]} 55. Rh6 {[%emt 0:01:27]} Kg3 {[%emt 0:00:06]} 56. Rg6+ {[%emt 0:05:52]} Kh4 {[%emt 0:15:03]} 57. Rh6+ {[%emt 0:00:30]} Kg4 58. Rg6+ Kh4 {[%emt 0:01:00]} 59. Rh6+ Kg4 60. Rg6+ Kh5 61. Rg1 {[%emt 0:02:00]} Kh4 {[%emt 0:01:30]} 62. Kd3 {[%emt 0:00:30]} h2 {[%emt 0:00:30]} 63. Rh1 Kg3 64. b4 {[%emt 0:01:00]} Kg2 {[%emt 0:01:00]} 65. Rxh2+ Kxh2 66. b5 {[%emt 0:01:00]} Rc1 {[%emt 0:01:00]} 67. a5 {[%emt 0:00:30]} Kg3 {[%emt 0:00:30]} 68. b6 {[%emt 0:00:30]} Rb1 {[%emt 0:00:30]} 69. Kd4 {[%emt 0:00:30]} Kf4 70. Kc5 e5 71. a6 {[%emt 0:01:00]} 1/2-1/2

[Event "Charlotte Fall GM-A 2023"]
[Site "Charlotte"]
[Date "2023.11.19"]
[Round "5.3"]
[White "Woodward, Andy"]
[Black "Mardov, Dimitar"]
[Result "1-0"]
[ECO "E08"]
[WhiteElo "2473"]
[BlackElo "2455"]
[Annotator "RC"]
[PlyCount "79"]
[EventDate "2023.11.17"]
[EventType "tourn"]
[EventCountry "USA"]
[SourceTitle "playchess.com"]
[Source "ChessBase"]
[SourceQuality "1"]
[TimeControl "5400+30"]

1. d4 {[%emt 0:02:03]} Nf6 {[%emt 1:31:00]} 2. c4 {[%emt 0:00:18]} e6 {[%emt 0:00:00]} 3. g3 {[%emt 0:00:09]} d5 {[%emt 0:00:00]} 4. Nf3 {[%emt 0:00:10]} Bb4+ {[%emt 0:00:00]} 5. Bd2 {[%emt 0:00:33]} Be7 {[%emt 0:00:00]} 6. Bg2 {[%emt 0:00:12]} O-O {[%emt 0:00:00]} 7. O-O {[%emt 0:00:06]} c6 {[%emt 0:00:00]} 8. Qc2 {[%emt 0:00:16]} Nbd7 {[%emt 0:00:00]} 9. Bf4 {[%emt 0:03:01]} a5 {[%emt 0:00:00]} 10. Rc1 {[%emt 0:12:51]} h6 {[%emt 0:00:00]} 11. h4 {[%emt 0:01:55]} a4 {[%emt 0:00:00]} 12. Nbd2 {[%emt 0:03:02]} c5 {[%emt 0:00:00]} 13. e4 {[%emt 0:12:23]} dxe4 {[%emt 0:00:00]} 14. Nxe4 {[%emt 0:00:24]} cxd4 {[%emt 0:00:00]} 15. Rd1 {[%emt 0:05:22]} Nh5 {[%emt 0:00:00]} 16. Bd6 {[%emt 0:11:20]} Bxd6 {[%emt 0:00:00]} 17. Nxd6 {[%emt 0:00:14]} e5 {[%emt 0:00:00]} 18. Qe2 {[%emt 0:14:03]} Qb6 {[%emt 0:00:00]} 19. Nb5 {[%emt 0:06:32]} Qc5 {[%emt 0:00:00]} 20. Re1 {[%emt 0:02:31]} Re8 {[%emt 0:00:00]} 21. Nfxd4 {[%emt 0:04:18]} Ndf6 {[%emt 0:00:00]} 22. b4 {[%emt 0:00:47]} Qxb4 {[%emt 0:00:00]} 23. Nc7 {[%emt 0:00:17]} Bg4 {[%emt 0:00:00]} 24. Nf3 {[%emt 0:00:23]} e4 {[%emt 0:01:02]} 25. Nxe8 {[%emt 0:03:47]} Rxe8 {[%emt 0:00:32]} 26. Qd2 {[%emt 0:00:01]} Qxc4 {[%emt 0:01:08]} 27. Qd4 {[%emt 0:01:02]} Qa6 {[%emt 0:02:52]} 28. Nd2 {[%emt 0:00:53]} Be6 {[%emt 0:01:33]} 29. Nxe4 {[%emt 0:00:30]} Nxe4 {[%emt 0:00:12]} 30. Qxe4 {[%emt 0:00:05]} b6 {[%emt 0:01:55]} 31. Qb4 {[%emt 0:02:01]} Rc8 {[%emt 0:02:26]} 32. a3 {[%emt 0:04:58]} Nf6 {[%emt 0:00:21]} 33. Rac1 {[%emt 0:00:24]} Rxc1 {[%emt 0:01:17]} 34. Rxc1 {[%emt 0:00:01]} Bb3 {[%emt 0:00:18]} 35. Qd6 {[%emt 0:00:24]} Qa5 {[%emt 0:01:19]} 36. Bf1 {[%emt 0:00:35]} Nd5 {[%emt 0:02:35]} 37. Rc8+ {[%emt 0:00:36]} Kh7 {[%emt 0:00:00]} 38. Bd3+ {[%emt 0:00:11]} g6 {[%emt 0:00:00]} 39. Qf8 {[%emt 0:00:12]} Qe1+ {[%emt 0:00:00]} 40. Bf1 {[%emt 0:00:04]} 1-0

[Event "Charlotte Fall GM-A 2023"]
[Site "Charlotte"]
[Date "2023.11.19"]
[Round "5.4"]
[White "Aarav Dengla"]
[Black "Bellahcene, Bilel"]
[Result "1/2-1/2"]
[ECO "B32"]
[WhiteElo "2391"]
[BlackElo "2502"]
[Annotator "RC"]
[PlyCount "191"]
[EventDate "2023.11.17"]
[EventType "tourn"]
[EventCountry "USA"]
[SourceTitle "playchess.com"]
[Source "ChessBase"]
[SourceQuality "1"]
[TimeControl "5400+30"]

1. e4 {[%emt 0:00:42]} c5 {[%emt 0:12:37]} 2. Nf3 {[%emt 0:00:09]} Nc6 {[%emt 1:18:53]} 3. d4 {[%emt 0:00:52]} cxd4 {[%emt 0:00:00]} 4. Nxd4 {[%emt 0:00:06]} e5 {[%emt 0:00:00]} 5. Nb5 {[%emt 0:00:11]} d6 {[%emt 0:00:00]} 6. c4 {[%emt 0:02:05]} Nf6 {[%emt 0:00:00]} 7. N1c3 {[%emt 0:01:05]} a6 {[%emt 0:00:00]} 8. Na3 {[%emt 0:00:04]} Be7 {[%emt 0:00:00]} 9. Bd3 {[%emt 0:04:20]} O-O {[%emt 0:00:00]} 10. O-O {[%emt 0:00:41]} Be6 {[%emt 0:00:00]} 11. Nc2 {[%emt 0:02:43]} Rc8 {[%emt 0:00:00]} 12. Ne3 {[%emt 0:09:48]} Nd4 {[%emt 0:00:00]} 13. Ned5 {[%emt 0:06:07]} Nxd5 {[%emt 0:00:00]} 14. cxd5 {[%emt 0:08:49]} Bd7 {[%emt 0:00:00]} 15. Be3 {[%emt 0:02:03]} Bg5 {[%emt 0:00:00]} 16. Qd2 {[%emt 0:13:04]} h6 {[%emt 0:00:00]} 17. f4 {[%emt 0:02:55]} Bf6 {[%emt 0:00:00]} 18. Qf2 {[%emt 0:07:28]} Nb5 {[%emt 0:00:00]} 19. Nxb5 {[%emt 0:02:37]} Bxb5 {[%emt 0:00:00]} 20. Bxb5 {[%emt 0:01:57]} axb5 {[%emt 0:00:00]} 21. Rac1 {[%emt 0:03:22]} exf4 {[%emt 0:00:00]} 22. Bxf4 {[%emt 0:02:08]} Qe7 {[%emt 0:00:00]} 23. Qe2 {[%emt 0:05:24]} Ra8 {[%emt 0:00:00]} 24. b4 {[%emt 0:04:21]} Rfe8 {[%emt 0:00:00]} 25. Rfe1 {[%emt 0:01:19]} Be5 {[%emt 0:00:00]} 26. Bxe5 {[%emt 0:01:47]} Qxe5 {[%emt 0:00:00]} 27. Rc7 {[%emt 0:06:11]} f5 {[%emt 0:00:00]} 28. Rc2 {[%emt 0:07:24]} Qd4+ {[%emt 0:00:00]} 29. Qf2 {[%emt 0:00:47]} Qxb4 {[%emt 0:00:00]} 30. Rb2 {[%emt 0:01:55]} Qc3 {[%emt 0:00:00]} 31. Rc2 {[%emt 0:01:01]} Qe5 {[%emt 0:00:00]} 32. Rce2 {[%emt 0:00:37]} fxe4 {[%emt 0:00:00]} 33. Rxe4 {[%emt 0:00:20]} Qxe4 {[%emt 0:00:00]} 34. Rxe4 {[%emt 0:00:02]} Rxe4 {[%emt 0:00:00]} 35. h3 {[%emt 0:00:59]} Re5 {[%emt 0:00:00]} 36. Qb2 {[%emt 0:01:22]} Ra5 {[%emt 0:00:00]} 37. a3 {[%emt 0:00:23]} Rxd5 {[%emt 0:00:00]} 38. Qb3 {[%emt 0:00:16]} b4 {[%emt 0:00:00]} 39. axb4 {[%emt 0:01:14]} Rab5 {[%emt 0:00:00]} 40. Qc4 {[%emt 0:00:33]} h5 {[%emt 0:00:00]} 41. h4 {[%emt 0:00:27]} Kh7 {[%emt 0:00:00]} 42. Qe4+ {[%emt 0:00:25]} Rf5 {[%emt 0:00:00]} 43. Qd3 {[%emt 0:00:21]} Rbd5 {[%emt 0:00:00]} 44. Qe4 {[%emt 0:00:18]} b5 {[%emt 0:00:00]} 45. Kh2 {[%emt 0:01:17]} Rde5 {[%emt 0:04:57]} 46. Qd3 {[%emt 0:00:13]} d5 {[%emt 0:08:35]} 47. Qxb5 {[%emt 0:00:22]} Re4 {[%emt 0:00:01]} 48. Kh3 {[%emt 0:01:08]} Re3+ {[%emt 0:00:27]} 49. Kh2 {[%emt 0:00:11]} Rf4 {[%emt 0:07:24]} 50. Qxd5 {[%emt 0:00:32]} Rxh4+ {[%emt 0:00:02]} 51. Kg1 {[%emt 0:00:01]} Re1+ {[%emt 0:01:49]} 52. Kf2 {[%emt 0:00:02]} Re7 {[%emt 0:00:30]} 53. Qf5+ {[%emt 0:01:51]} g6 {[%emt 0:00:16]} 54. Qf6 {[%emt 0:00:04]} Rhe4 {[%emt 0:00:06]} 55. b5 {[%emt 0:00:48]} R4e6 {[%emt 0:00:59]} 56. Qg5 {[%emt 0:00:26]} Re5 {[%emt 0:00:10]} 57. Qh4 {[%emt 0:00:22]} Rf7+ {[%emt 0:00:02]} 58. Kg1 {[%emt 0:00:10]} Rxb5 {[%emt 0:00:02]} 59. Qc4 {[%emt 0:00:30]} Rbf5 {[%emt 0:00:06]} 60. Qe4 {[%emt 0:00:30]} Rg5 {[%emt 0:00:31]} 61. Qe6 {[%emt 0:01:03]} Rgf5 {[%emt 0:00:22]} 62. Qe4 {[%emt 0:00:16]} Rf4 {[%emt 0:01:51]} 63. Qe5 {[%emt 0:00:15]} Rg4 {[%emt 0:00:54]} 64. Qe2 {[%emt 0:00:31]} Rc7 {[%emt 0:00:17]} 65. Kh2 {[%emt 0:00:49]} Rf4 {[%emt 0:00:45]} 66. Qe5 {[%emt 0:00:34]} Rcf7 {[%emt 0:00:03]} 67. Kg1 {[%emt 0:00:20]} h4 {[%emt 0:00:20]} 68. Kh2 {[%emt 0:00:32]} Rg4 {[%emt 0:00:06]} 69. Qe6 {[%emt 0:00:25]} Rgf4 {[%emt 0:00:16]} 70. Qe5 {[%emt 0:00:05]} R4f5 {[%emt 0:00:42]} 71. Qe4 {[%emt 0:00:36]} Rg5 {[%emt 0:00:25]} 72. Qd4 {[%emt 0:01:06]} Rgf5 {[%emt 0:01:12]} 73. Qe4 {[%emt 0:00:02]} Kh6 {[%emt 0:00:27]} 74. Qd4 {[%emt 0:00:17]} Rf8 {[%emt 0:00:03]} 75. Qd6 {[%emt 0:00:45]} R5f6 {[%emt 0:00:01]} 76. Qd2+ {[%emt 0:00:33]} g5 {[%emt 0:00:02]} 77. Qe3 {[%emt 0:00:32]} Rf1 {[%emt 0:00:51]} 78. Qe2 {[%emt 0:00:32]} R8f6 {[%emt 0:00:16]} 79. Qe3 {[%emt 0:00:43]} Rd1 {[%emt 0:01:21]} 80. Qe2 {[%emt 0:00:47]} Rd8 {[%emt 0:00:21]} 81. Qe7 {[%emt 0:00:22]} Rdf8 {[%emt 0:00:05]} 82. Qe4 {[%emt 0:00:09]} R8f7 {[%emt 0:00:08]} 83. Qe3 {[%emt 0:00:39]} Rd6 {[%emt 0:00:35]} 84. Qe4 {[%emt 0:00:37]} Rf2 {[%emt 0:00:34]} 85. Kg1 {[%emt 0:00:22]} Rdf6 {[%emt 0:00:44]} 86. Kh2 {[%emt 0:00:43]} Rd2 {[%emt 0:00:14]} 87. Qe5 {[%emt 0:00:30]} Rdd6 {[%emt 0:00:40]} 88. Qe4 {[%emt 0:00:16]} Rde6 {[%emt 0:00:05]} 89. Qc4 {[%emt 0:00:30]} Re1 {[%emt 0:00:12]} 90. Qc3 {[%emt 0:00:31]} Ref1 {[%emt 0:01:06]} 91. Qc8 {[%emt 0:00:47]} Rf7 {[%emt 0:01:31]} 92. Qh8+ {[%emt 0:00:22]} Kg6 {[%emt 0:00:02]} 93. Qg8+ {[%emt 0:00:30]} Rg7 {[%emt 0:00:09]} 94. Qc8 {[%emt 0:00:14]} Rff7 {[%emt 0:00:26]} 95. Qc6+ {[%emt 0:00:36]} Kh5 {[%emt 0:00:09]} 96. Qb5 {[%emt 0:00:27]} 1/2-1/2